Cogmind - Beta 17.1 @@@ ROGUE MODE // 2026.09.17 @ 18:07:49 Player: H3-MLN Result: Destroyed by 8R-AWN with 8R-AWN's Boregun Performance ------------- Evolutions (0) 0 Regions Visited (3) 600 Robots Destroyed (6) 30 Value Destroyed (156) 156 Prototype IDs (29) 580 Alien Tech Used (0) 0 Bonus (5300) 5300 TOTAL SCORE: 6666 Bonus ------- Prayed to X0-1V1 5000 Aligned with FarCom 300 Cogmind --------- Core Integrity 0/300 Matter 260/300 Energy 99/100 System Corruption 0% Temperature Hot (275) Movement Core (850) Ox16 Location -10/Exiles Parts ------- > --- POWER (1) -------- (None) > --- PROPULSION (2) --- (None) > --- UTILITY (2) ------ High-capacity Storage Unit Self-contained Transmogrifier > --- WEAPON (2) ------- Guided Plasma Cannon Light Assault Rifle > --- INVENTORY (20) --- Large Storage Unit Medium Matter Pod (100) Medium Matter Pod (100) Supersonic Drone Bay (1/1) X0-1V1's Piety Tracker XL Autogun Array Peak State ------------ > --- POWER ------------ Hybrid Fission Core > --- PROPULSION ------- Improved Treads Advanced Treads > --- UTILITY ---------- High-capacity Storage Unit Self-contained Transmogrifier > --- WEAPON ----------- EM Shotgun Shock Rifle > --- INVENTORY -------- Nuclear Core Fission Core Light Fission Core Wheel Large Storage Unit High-capacity Battery Medium Matter Pod Medium Matter Pod Supersonic Drone Bay X0-1V1's Piety Tracker Improved Medium Laser Guided Plasma Cannon Light Assault Rifle XL Autogun Array Mining Claw [Rating: 33] Favorites ----------- Power Hybrid Fission Core Engine Light Ion Engine Power Core Hybrid Fission Core Propulsion Spiked Treads Treads Spiked Treads Wheel Compact Wheel Utility Self-contained Transmogrifier Device Self-contained Transmogrifier Storage High-capacity Storage Unit Weapon Beam Rifle Energy Gun Beam Rifle Energy Cannon Advanced Beam Cannon Ballistic Gun Light Assault Rifle Special Weapon Welding Torch Slashing Weapon Mining Claw Build | -11 -10 -10 -10 ------- Run | Yrd Mat Min Exi Slots Evolved . | . . . . Power . | . . . . Propulsion . | . . . . Utility . | . . . . Weapon . | . . . . Parts Attached 17 | 7 4 1 5 Power 2 | 1 1 . . Engine 1 | 1 . . . Core 1 | . 1 . . Reactor . | . . . . Propulsion 4 | 2 . . 2 Treads 3 | 2 . . 1 Leg . | . . . . Wheel 1 | . . . 1 Hover . | . . . . Flight . | . . . . Utility 4 | 1 1 1 1 Device 1 | . 1 . . Storage 3 | 1 . 1 1 Processor . | . . . . Hackware . | . . . . Protection . | . . . . Artifact . | . . . . Weapon 7 | 3 2 . 2 Energy Gun 2 | . 1 . 1 Energy Cannon 1 | . . . 1 Ballistic Gun 3 | 3 . . . Ballistic Cannon . | . . . . Launcher . | . . . . Special Weapon . | . . . . Impact Weapon . | . . . . Slashing Weapon 1 | . 1 . . Piercing Weapon . | . . . . Special Melee Weapon . | . . . . Unidentified Prototypes 1 | . 1 . . Parts Lost 8 | . . . 8 Power 1 | . . . 1 Propulsion 3 | . . . 3 Utility . | . . . . Weapon 4 | . . . 4 Highest Loss Streak 8 | . . . 8 To Critical Strikes 4 | . . . 4 Average Backups 11 | 2 4 6 14 Power 2 | . 1 . 2 Propulsion 1 | 1 1 1 1 Utility 4 | . . 1 5 Weapon 3 | . 1 3 4 Tool/Special . | . . . . Unused Backups 14 | . 3 . 11 Power 4 | . 1 . 3 Propulsion 2 | . 2 . . Utility 7 | . . . 7 Weapon 1 | . . . 1 Tool/Special . | . . . . Average Slot Usage (%) 98 | . 96 100 99 Engine 2 | . 8 . 1 Core 11 | . 5 14 12 Treads 21 | . 24 14 20 Wheel 6 | . 3 14 6 Device 15 | . 21 21 14 Storage 12 | . 3 7 14 Energy Gun 15 | . . 14 18 Energy Cannon 2 | . 1 . 2 Ballistic Gun 7 | . 21 14 4 Special Weapon 1 | . . . 1 Peak Build Rating 33 | 6 32 32 33 Average Rating 27 | 4 23 24 29 On Entrance 15 | . 6 32 22 Avg Prop Armor Cover (%) 14 | . 3 10 16 Naked Turns . | . . . . Heaviest Build 93 | 11 11 89 93 Greatest Support 45 | 40 40 20 45 Greatest Overweight (x) 5 | . . 5 5 Average Overweight (x) 2 | . . 2 4 Largest Inventory Capacity 25 | 8 8 25 25 Average Capacity 17 | 7 5 16 21 Most Carried 19 | 5 7 8 19 Average Carried 13 | 2 4 6 16 Final Capacity 25 | 8 5 25 20 Final Carried 9 | 5 5 8 9 Transmogrified Parts 24 | . 3 . 21 Integrity Recovered 215 | . 19 . 196 Class Distribution -------------------- 100% | Mutant Dominant Class ---------------- Mutant | -10/Materials Mutant | -10/Mines Mutant | -10/Exiles Resources | -11 -10 -10 -10 ----------- Run | Yrd Mat Min Exi Matter Collected 467 | 326 101 10 30 Remotely . | . . . . Salvage Created 339 | 105 182 . 52 Parts 11 | 3 8 . . Haulers Intercepted . | . . . . Recyclers Shooed . | . . . . Parts Field Recycled . | . . . . Retrieved Matter . | . . . . Parts Self-Destructed . | . . . . Prevented . | . . . . Parts Restored . | . . . . Kills | -11 -10 -10 -10 ------- Run | Yrd Mat Min Exi Combat Hostiles Destroyed 7 | . 4 . 3 Guns 7 | . 4 . 3 Classes Destroyed 4 | 2 1 . 1 Worker 1 | 1 . . . Recycler 1 | 1 . . . Grunt 4 | . 4 . . Assembled 3 | . . . 3 Best Kill Streak 3 | 2 2 . 3 Combat Bots Only 3 | . 2 . 3 Max Kills in Single Turn 1 | 1 1 . 1 Gunslinging . | . . . . Exploded . | . . . . Melee . | . . . . Uniques/NPCs Destroyed . | . . . . Combat | -11 -10 -10 -10 -------- Run | Yrd Mat Min Exi Hostile Shots Fired 94 | . 16 . 78 Missed 20 | . 4 . 16 Hits 74 | . 12 . 62 Projectile 74 | . 12 . 62 Critical Strikes 27 | . . . 27 Damage Taken 1293 | . 164 . 1129 Core 309 | . 25 . 284 Absorbed by Shields . | . . . . Core Remaining (%) 100 | 100 . . . Volleys Fired 69 | 14 15 . 40 Largest 2 | 2 2 . 2 Hottest 120 | 40 80 . 120 Shots Fired 112 | 28 30 . 54 Gun 103 | 28 27 . 48 Cannon 9 | . 3 . 6 Launcher . | . . . . Special . | . . . . Kinetic 65 | 28 27 . 10 Thermal 12 | . 3 . 9 Explosive . | . . . . Electromagnetic 35 | . . . 35 Robot Hit Streak 12 | 8 12 . 11 Robot Miss Streak 4 | 2 2 . 4 Penetration Max . | . . . . Secondary Targets 2 | . 1 . 1 Max Gunslinging Chain 1 | . 1 . 1 Shots Hit Robots 80 | 16 21 . 43 Core Hits 27 | 3 9 . 15 Critical Kills . | . . . . Critical Parts Destroyed 1 | 1 . . . Critical Strikes 1 | 1 . . . Destroy 1 | 1 . . . Melee Attacks 3 | . . . 3 Impact . | . . . . Slashing 3 | . . . 3 Piercing . | . . . . Sneak Attacks . | . . . . Combat Hostiles . | . . . . Follow-up Attacks . | . . . . Damage Inflicted 676 | 164 238 . 274 Guns 615 | 164 220 . 231 Cannons 36 | . 18 . 18 Explosions . | . . . . Melee 25 | . . . 25 Ramming . | . . . . Kinetic 451 | 164 220 . 67 Thermal 38 | . 18 . 20 Explosive . | . . . . Electromagnetic 162 | . . . 162 Impact . | . . . . Slashing 25 | . . . 25 Piercing . | . . . . Highest Corruption . | . . . . Average Corruption . | . . . . Corruption Purged . | . . . . Corruption Blocked . | . . . . Overload Shots . | . . . . Overflow Damage . | . . . . Projectiles . | . . . . Explosions . | . . . . Melee . | . . . . Knockbacks . | . . . . Impact . | . . . . Kinetic . | . . . . Secondary . | . . . . Self-Inflicted Damage . | . . . . Shots . | . . . . Rammed . | . . . . Targets Rammed . | . . . . Kicked . | . . . . Crushed . | . . . . Highest Temperature 395 | . 88 . 395 Average Temperature 158 | . 20 . 196 Received Heat Transfer 136 | . 96 . 40 Effects 4 | . . . 4 Interference 4 | . . . 4 Siege Activations . | . . . . Martial Activations . | . . . . Shielding Activations . | . . . . Robots Disrupted . | . . . . Combat Hostiles . | . . . . Robots Corrupted . | . . . . Combat Hostiles . | . . . . Parts Fried . | . . . . Impact Corruptions . | . . . . Robots Melted . | . . . . Combat Hostiles . | . . . . Parts Melted . | . . . . Heat Transferred 175 | . 37 . 138 Parts Sabotaged . | . . . . Parts Stolen . | . . . . Parts Stripped . | . . . . Power Chain Reactions . | . . . . Alert | -11 -10 -10 -10 ------- Run | Yrd Mat Min Exi Maximum Alert Level . | . . . . Low Security (%) 100 | 100 100 100 . Level 1 . | . . . . Level 2 . | . . . . Level 3 . | . . . . Level 4 . | . . . . Level 5 . | . . . . High Security . | . . . . Max Security . | . . . . Peak Influence 80 | 10 80 9 . Initial 9 | . . 9 . Average 13 | 1 18 2 . Influence Increases 142 | 10 132 . . Destroy 0b10 Robot/C 80 | . 80 . . Destroy 0b10 Robot/NC 10 | 10 . . . Destroy Leader 20 | . 20 . . Successful Hack 32 | . 32 . . Influence Decreases 142 | 10 106 26 . Entered New Map 17 | . . 17 . Time Decay 125 | 10 106 9 . Squads Dispatched 1 | . 1 . . Investigation . | . . . . Extermination . | . . . . Reinforcement 1 | . 1 . . Assault . | . . . . Garrison . | . . . . Intercept . | . . . . Searches Triggered . | . . . . Construction Impeded . | . . . . Haulers Reinforced . | . . . . Active Scanning Responses . | . . . . Cargo Convoy Interrupts . | . . . . Stealth | -11 -10 -10 -10 --------- Run | Yrd Mat Min Exi Distress Signals . | . . . . Communications Jammed . | . . . . Distress Signals . | . . . . Times Spotted 13 | . 8 . 5 Peak Tracking Total 9 | . 3 . 9 Tactical Retreats . | . . . . Traps | -11 -10 -10 -10 ------- Run | Yrd Mat Min Exi Traps Triggered . | . . . . Indirectly . | . . . . Trap Hack Attempts . | . . . . Triggered . | . . . . Disarmed . | . . . . Reprogrammed . | . . . . Reused . | . . . . Traps Extracted . | . . . . Installed . | . . . . Triggered . | . . . . Machines | -11 -10 -10 -10 ---------- Run | Yrd Mat Min Exi Machines Disabled 2 | . . . 2 Max in Single Turn 1 | . . . 1 Machines Repaired . | . . . . Machines Dismantled . | . . . . Machines Sabotaged . | . . . . Overloaded Fab Kills . | . . . . Hacking | -11 -10 -10 -10 --------- Run | Yrd Mat Min Exi Machines Accessed 4 | . 2 . 2 Terminals 2 | . 2 . . Fabricators . | . . . . Repair Stations . | . . . . Recycling Units . | . . . . Scanalyzers . | . . . . Garrison Access . | . . . . Total Hacks 14 | . 9 . 5 Successful 12 | . 7 . 5 Failed 2 | . 2 . . Catastrophic . | . . . . Database Lockouts . | . . . . Manual 8 | . 7 . 1 Terminals 9 | . 9 . . Fabricators . | . . . . Repair Stations . | . . . . Recycling Units . | . . . . Scanalyzers . | . . . . Garrison Access . | . . . . Terminal Hacks 11 | . 6 . 5 Record 4 | . . . 4 Part Schematic 1 | . 1 . . Robot Schematic 1 | . 1 . . Robot Analysis 2 | . 2 . . Prototype ID Bank 1 | . 1 . . Locate Traps 1 | . 1 . . Proto ID Catalog 1 | . . . 1 Fabricator Hacks . | . . . . Repair Station Hacks . | . . . . Recycling Unit Hacks . | . . . . Scanalyzer . | . . . . Garrison Access Hacks . | . . . . Unauthorized Hacks 1 | . 1 . . Terminals 1 | . 1 . . Operators 1 | . 1 . . Fabricators . | . . . . Repair Stations . | . . . . Recycling Units . | . . . . Scanalyzers . | . . . . Garrison Access . | . . . . Data Cores Recovered . | . . . . Used . | . . . . Hacking Detections 1 | . 1 . . Full Trace Events . | . . . . Feedback Events . | . . . . Feedback Blocked . | . . . . Robot Schematics Acquired 1 | . 1 . . Robots Built . | . . . . Authchips . | . . . . Time . | . . . . Total Robot Build Rating . | . . . . Part Schematics Acquired 1 | . 1 . . Parts Built . | . . . . Authchips . | . . . . Time . | . . . . Total Part Build Rating . | . . . . Part Studies Acquired . | . . . . Parts Repaired . | . . . . Time . | . . . . Parts Recycled . | . . . . Recycled Matter . | . . . . Retrieved Matter . | . . . . Retrieved Components . | . . . . Parts Scanalyzed . | . . . . Part Schematics Acquired . | . . . . Parts Damaged . | . . . . Bothacking | -11 -10 -10 -10 ------------ Run | Yrd Mat Min Exi Used RIF Installer . | . . . . Robots Hacked . | . . . . Non-combat . | . . . . Combat . | . . . . Robot Hacks Applied . | . . . . Relay Couplers Released . | . . . . Fabnet Peak Effective % . | . . . . Robots Rewired . | . . . . Allies Hacked . | . . . . Hacks Repelled . | . . . . Allies | -11 -10 -10 -10 -------- Run | Yrd Mat Min Exi Total Allies . | . . . . Largest Group . | . . . . Highest-Rated Group . | . . . . Highest-Rated Ally . | . . . . Total Orders . | . . . . Ally Attacks . | . . . . Total Damage . | . . . . Kills . | . . . . Allies Corrupted . | . . . . Allies Melted . | . . . . X0-1V1 Amusement Gains 111 | . 12 . 99 Average Entertainment 14 | . 15 6 . Good Acts 6 | . 6 . . Intel | -11 -10 -10 -10 ------- Run | Yrd Mat Min Exi Active Infowar (turns) . | . . . . Robot Analysis Total 2 | . 2 . . Derelict Logs Recovered . | . . . . Drone Launches . | . . . . Drone Recoveries . | . . . . Exploration | -11 -10 -10 -10 ------------- Run | Yrd Mat Min Exi Turns Passed 3240 | 143 499 74 2524 Spaces Moved 837 | 66 270 42 459 Core 15 | 15 . . . Treads 367 | 51 270 19 27 Legs . | . . . . Wheels 455 | . . 23 432 Hover . | . . . . Flight . | . . . . Fastest Speed 50 | 50 160 160 145 Average Speed 164 | 135 160 168 170 Slowest Speed 360 | 160 160 175 360 Overloaded Moves . | . . . . Propulsion Burnouts . | . . . . Robots Hopped . | . . . . Potential Cave-ins . | . . . . Cave-ins Triggered . | . . . . Exploration Rate (%) 35 | 4 60 11 67 Regions Visited 3 Branch Regions 2 Pre-discovered Areas 1 | . . . 1 Known Exits Taken . | . . . . Unknown Exits Taken 3 | 1 1 1 . Scrap Searched . | . . . . Spaces Dug . | . . . . Terrain Destroyed . | . . . . Melee . | . . . . Projectile . | . . . . AOE . | . . . . Terrain Rammed . | . . . . Walls Destroyed . | . . . . Machines Disabled . | . . . . Actions | -11 -10 -10 -10 --------- Run | Yrd Mat Min Exi Total 2590 | 91 310 46 2143 Wait 1628 | . 11 . 1617 Move 834 | 65 269 41 459 Hop . | . . . . Pick Up 24 | 5 6 3 10 Fast Attach 7 | 6 . 1 . Attach 6 | . 1 . 5 Detach . | . . . . Swap 8 | 1 4 . 3 Drop 11 | . 4 1 6 Fire 69 | 14 15 . 40 Melee 3 | . . . 3 Ram . | . . . . Kick . | . . . . Crush . | . . . . Escape Stasis . | . . . . Rewire . | . . . . Trap . | . . . . Miscellaneous . | . . . . Route ------- -11/Scrapyard -10/Materials (discovered 3 exits: [*Mat] / [*Min] / [*Sub]) -10/Mines -10/Exiles History --------- Turn | Location | Event 9 | -11/Scrapyard | Discovered new exit (range 15) 144 | -11/Scrapyard | Entered Materials 249 | -10/Materials | Discovered new exit (range 7) 257 | -10/Materials | Made a sacrifice at D.C.S.S. Altar Unit 257 | -10/Materials | Forcibly received Sfc. Transmogifier from X0-1V1 309 | -10/Materials | Build established: Mutant 523 | -10/Materials | Discovered new exit (range 11) 605 | -10/Materials | Discovered new exit (range 7) 633 | -10/Materials | Core integrity permanently improved by X0-1V1 (+200) 643 | -10/Materials | Entered Mines 708 | -10/Mines | Deemed a non-threat by the Exiles lab entrance 708 | -10/Mines | Discovered new exit (range 5) 717 | -10/Mines | Entered Exiles 771 | -10/Exiles | Met 8R-AWN 799 | -10/Exiles | Met EX-HEX 859 | -10/Exiles | Met EX-BIN 920 | -10/Exiles | Met EX-DEC 927 | -10/Exiles | Learned location of Zion (-6) 1020 | -10/Exiles | Aligned with FarCom system 1021 | -10/Exiles | Given EX-Vault access code 1065 | -10/Exiles | Opened EX-Vault 1076 | -10/Exiles | Found Gui. Plasma Cannon 1082 | -10/Exiles | Found XL Autogun Array 1086 | -10/Exiles | Found Supersonic Drone Bay 1121 | -10/Exiles | Warned to stay clear of 0b10 Research branches 3080 | -10/Exiles | Attacked by the Exiles 3205 | -10/Exiles | Core integrity fell below 50% 3230 | -10/Exiles | Core integrity fell below 20% 3241 | -10/Exiles | Destroyed by 8R-AWN with 8R-AWN's Boregun Last Messages --------------- 03218_ Mining Claw destroyed. 03220_ HV Slug penetrates Wall. 03220_ Penetrated by HV Slug. 03222_ HV Slug penetrates Wall. 03224_ Penetrated by HV Slug. 03224_ Critical hit (Destroy). 03224_ Pulse Rifle destroyed. 03224_ HV Slug penetrates Wall. 03226_ Dropped Hcp. Battery. 03227_ Extracted 70 energy. 03228_ Extracted 25 energy. 03229_ Penetrated by HV Slug. 03230_ Extracted 25 energy. 03232_ Overheating: System interference. 03232_ Gui. Plasma Cannon temporarily disabled. 03232_ Extracted 25 energy. 03233_ Penetrated by HV Slug. 03234_ Extracted 15 energy. 03237_ Penetrated by HV Slug. 03241_ X0-1V1 giggles madly! Map ----- +----------------------------------------------------+ | ?????????????????????????????????????????????????? | | ?????????????????????????????????????????????????? | | ?????????????????????????????????????????????????? | | ?????????????????????????????????????????????????? | | ?????????????????????????????????????????????????? | | ?????????????????????????????????????????????????? | | ?????????????????????????????????????????????????? | | ?????????????????????????????????????????????????? | | ?????????????????????????????????????????????????? | | ?????????????????????????????????????????????????? | | ??????????????????????????????????????????????#### | | ??????????????????????????????????????????????"""" | | ??????????????????????????????????????????????"""" | | ?????????????????????????????????????????????#""X" | | ?????????????????????????????????????????????#" | | ?????????????????????????????????????????????#" | | ?????????????????????????????????????????????#"""" | | ?????????????????????????????????????????????##"## | | ?????????????????????????????????????????????? ??? | | ?????????????????????????????????????????????????? | | ?????????????????????????????????????????????????? | | ????????????????????#######??????????????????????? | | ?????? ######???????#!!! #??????????????????????? | | ????? #""#??????# #??????????????????????? | | ????? ??????# g #??????????????????????? | | ????" #????## @#????????????####??????? | | ????? #####" ;#??????????? """?????? | | ?????# ##" ; #??????????" """#????? | | ??????# #"" ;#;# #?????????" #????? | | ?????????# %;?### #???????"" #????? | | ???????????## ;#???# #??????"" "#????? | | ????????????### #????# #????? ""?????? | | ??????########" %%###???# #?????" "??????? | | ??????# !!""""" ##???# #????# #??????? | | ??????#! "### *###### ??### ###?#### | | ??????#! "#?##" """##;##X# #"###""" | | ??????#! ##??#" * """""" | | ??????#!!""""""###???#"# "" """ | | ??????##########?????#### " " | | ????????????????????????### | | ??????????????????????????### | | ????????????????????????????## | | ?????????????????????????????## | | ??????????????????????????????##" | | ???????????????????????????????#"" | | ??????????????????????????????##" | | ??????????????????????????????#"" ""# | | ??????????????????????????????#""" """## | | ?????????????????????????????#""" """##? | | ?????????????????????????????#""" ""#?? | +----------------------------------------------------+ Best States ------------- Heat Dissipation 25 Energy Generation 15 Energy Capacity 900 Matter Stores 300 Matter Capacity 300 Sight Range 16 Terrain Scan Density 10 Evasion (%) 50 Recoil Reduction 2 Item Schematics ----------------- Huge Storage Unit | -10/Materials | Hacked Robot Schematics ------------------ M-13 Machinist | -10/Materials | Hacked Fabricated ------------ Nothing Repaired ---------- Nothing Studied --------- None Alien Tech Used ----------------- None Achievements -------------- None Challenges ------------ None Game ------ Seed BackupCorruptionNukerbomber Manual? 0 Play Time 00:14:51 Cumulative 1825.8 hours Start 2026.09.17 @ 17:54:37 End 2026.09.17 @ 18:07:49 Sessions 1 Manual Loads 0 Difficulty Rogue Special Mode None Game No. 551 Rogue 543 Adventurer 4 Explorer 4 Win Type - Total 77 Types 32/12/6/4/2/5/9/2/3/2 Lore% 98 Gallery% 96 Achievement% 93 Wizard Run 0 Options --------- Layout 0 ASCII 0 Keyboard 0 Movement Numpad Keybinds 0 Fullscreen 2 Font 18/SmallcapsGlow Map View 38x25 Zoom Use 98% Tactical HUD 1 Map Filters NONE Filters NONE Steam 1 RUN: f231fd84-33a5-4352-86ac-e2122234fa73